bitfinex-derivatives/quotes_ETHF0:USTF0_20260117
["timestamp","ask_amount","ask_price","bid_price","bid_amount"]
[1768630647119,1.204574,3290.4,3289.2,0.30043265]
[1768630647331,1.204574,3290.3,3289.2,0.30043265]
[1768630647626,0.92744238,3290.2,3289.2,0.30043265]
[1768630647822,0.92744238,3290.1,3289.2,0.30043265]
[1768630648123,1.7,3290.5,3289.2,0.30043265]
[1768630648326,1.20458393,3290.4,3289.2,0.30043265]
[1768630648514,1.20458393,3290.3,3289.2,0.30043265]
[1768630648818,0.92745009,3290.2,3289.2,0.30043265]
[1768630649115,0.92745009,3290.1,3289.2,0.30043265]
[1768630649312,1.7,3290.5,3289.2,0.30043265]
[1768630649514,1.20459061,3290.4,3289.2,0.30043265]
[1768630649730,1.20459061,3290.3,3289.2,0.30043265]
[1768630649920,0.92745557,3290.2,3289.2,0.30043265]
[1768630650228,0.92745557,3290.1,3289.2,0.30043265]
[1768630650427,1.7,3290.5,3289.2,0.30043265]
[1768630650622,1.20459583,3290.4,3289.2,0.30043265]
[1768630650825,1.20459583,3290.3,3289.2,0.30043265]
[1768630651025,0.9274596,3290.2,3289.2,0.30043265]
[1768630651223,0.9274596,3290.1,3289.2,0.30043265]
[1768630651429,1.7,3290.5,3289.2,0.30043265]
[1768630651730,1.20459818,3290.4,3289.2,0.30043265]
[1768630651920,1.20459818,3290.3,3289.2,0.30043265]
[1768630652119,0.92746133,3290.2,3289.2,0.30043265]
[1768630652329,0.92746133,3290.1,3289.2,0.30043265]
[1768630652528,1.7,3290.5,3289.2,0.30043265]
[1768630652825,1.20460391,3290.4,3289.2,0.30043265]
[1768630653028,1.20460391,3290.3,3289.2,0.30043265]
[1768630653219,1.20460391,3290.2,3289.2,0.30043265]
[1768630653422,0.92746574,3290.1,3289.2,0.30043265]
[1768630653619,1.7,3290.5,3289.2,0.30043265]
[1768630653819,1.20460617,3290.4,3289.2,0.30043265]
[1768630654017,1.20460617,3290.3,3289.2,0.30043265]
[1768630654219,1.20460617,3290.2,3289.2,0.30043265]
[1768630654418,0.92746741,3290.1,3289.2,0.30043265]
[1768630654630,1.7,3290.5,3289.2,0.30043265]
[1768630654830,1.20460984,3290.4,3289.2,0.30043265]
[1768630655032,1.20460984,3290.3,3289.2,0.30043265]
[1768630655228,1.7,3290.5,3289.2,0.30043265]
[1768630655229,1.20460984,3290.2,3289.2,0.30043265]
[1768630655429,0.9274702,3290.1,3289.2,0.30043265]
[1768630655631,1.7,3290.5,3289.2,0.30043265]
[1768630655830,1.20461482,3290.4,3289.2,0.30043265]
[1768630656034,1.20461482,3290.3,3289.2,0.30043265]
[1768630656234,1.20461482,3290.2,3289.2,0.30043265]
[1768630656437,0.92747404,3290.1,3289.2,0.30043265]
[1768630656738,1.7,3290.5,3289.2,0.30043265]
[1768630657034,1.20462199,3290.4,3289.2,0.30043265]
[1768630657235,1.20462199,3290.3,3289.2,0.30043265]
[1768630657436,1.20462199,3290.2,3289.2,0.30043265]
[1768630657636,0.9274795,3290.1,3289.2,0.30043265]
[1768630657839,1.7,3290.5,3289.2,0.30043265]
[1768630658033,1.20462778,3290.4,3289.2,0.30043265]
[1768630658330,1.20462778,3290.3,3289.2,0.30043265]
[1768630658534,1.20462778,3290.2,3289.2,0.30043265]
[1768630658723,0.92748404,3290.1,3289.2,0.30043265]
[1768630658925,1.7,3290.5,3289.2,0.30043265]
[1768630659137,1.20462804,3290.4,3289.2,0.30043265]
[1768630659330,1.20462804,3290.3,3289.2,0.30043265]
[1768630659532,1.20462804,3290.2,3289.2,0.30043265]
[1768630659828,1.7,3290.5,3289.2,0.30043265]
[1768630659829,0.92748424,3290.1,3289.2,0.30043265]
[1768630660027,1.7,3290.5,3289.2,0.30043265]
[1768630660228,1.204629,3290.4,3289.2,0.30043265]
[1768630660428,1.204629,3290.3,3289.2,0.30043265]
[1768630660636,1.204629,3290.2,3289.2,0.30043265]
[1768630660837,0.92748434,3290.1,3289.2,0.30043265]
[1768630661137,1.7,3290.5,3289.2,0.30043265]
[1768630661324,1.20463706,3290.4,3289.2,0.30043265]
[1768630661622,1.20463706,3290.3,3289.2,0.30043265]
[1768630661822,1.20463706,3290.2,3289.2,0.30043265]
[1768630662025,0.92749137,3290.1,3289.2,0.30043265]
[1768630662229,1.7,3290.5,3289.2,0.30043265]
[1768630662429,1.20464442,3290.4,3289.2,0.30043265]
[1768630662630,1.20464442,3290.3,3289.2,0.30043265]
[1768630662829,1.7,3290.5,3289.2,0.30043265]
[1768630662830,1.20464442,3290.2,3289.2,0.30043265]
[1768630663028,0.92749715,3290.1,3289.2,0.30043265]
[1768630663233,1.7,3290.5,3289.2,0.30043265]
[1768630663434,1.2046541,3290.4,3289.2,0.30043265]
[1768630663734,1.2046541,3290.3,3289.2,0.30043265]
[1768630663938,1.2046541,3290.2,3289.2,0.30043265]
[1768630664127,0.92750475,3290.1,3289.2,0.30043265]
[1768630664328,1.7,3290.5,3289.2,0.30043265]
[1768630664528,1.20466368,3290.4,3289.2,0.30043265]
[1768630664738,1.20466368,3290.3,3289.2,0.30043265]
[1768630664938,1.20466368,3290.2,3289.2,0.30043265]
[1768630665141,0.9275123,3290.1,3289.2,0.30043265]
[1768630665343,1.7,3290.5,3289.2,0.30043265]
[1768630665536,1.20467092,3290.4,3289.2,0.30043265]
[1768630665737,1.20467092,3290.3,3289.2,0.30043265]
[1768630665938,0.92751786,3290.2,3289.2,0.30043265]
[1768630666237,0.92751786,3290.1,3289.2,0.30043265]
[1768630666441,1.7,3290.5,3289.2,0.30043265]
[1768630666632,0.92751461,3290.4,3289.2,0.30043265]
[1768630666828,1.20466719,3290.3,3289.2,0.30043265]
[1768630667033,0.92751461,3290.2,3289.2,0.30043265]
[1768630667243,0.92751461,3290.1,3289.2,0.30043265]
[1768630667542,1.7,3290.5,3289.2,0.30043265]
[1768630667744,1.20447896,3290.4,3289.2,0.30043265]
[1768630667946,1.20447896,3290.3,3289.2,0.30043265]
[1768630668240,0.9273279,3290.2,3289.2,0.30043265]
[1768630668437,0.9273279,3290.1,3289.2,0.30043265]
[1768630668637,1.7,3290.5,3289.2,0.30043265]
[1768630668845,1.20447233,3290.4,3289.2,0.30043265]
[1768630669046,1.20447233,3290.3,3289.2,0.30043265]
[1768630669247,0.92732272,3290.2,3289.2,0.30043265]
[1768630669542,0.92732272,3290.1,3289.2,0.30043265]
[1768630669745,1.7,3290.5,3289.2,0.30043265]
[1768630669945,1.20446305,3290.4,3289.2,0.30043265]
[1768630670245,1.20446305,3290.3,3289.2,0.30043265]
[1768630670435,0.9273155,3290.2,3289.2,0.30043265]
[1768630670635,0.9273155,3290.1,3289.2,0.30043265]
[1768630670845,1.70302809,3290.6,3289.2,0.30043265]
[1768630671036,1.2044543,3290.5,3289.2,0.30043265]
[1768630671238,1.20445329,3290.4,3289.2,0.30043265]
[1768630671438,1.20445329,3290.3,3289.2,0.30043265]
[1768630671647,0.92730869,3290.2,3289.2,0.30043265]
[1768630671951,1.70302809,3290.6,3289.2,0.30043265]
[1768630672143,1.20444477,3290.5,3289.2,0.30043265]
[1768630672447,1.20444477,3290.4,3289.2,0.30043265]
[1768630672646,1.20444477,3290.3,3289.2,0.30043265]
[1768630672850,0.92730316,3290.2,3289.2,0.30043265]
[1768630673051,1.70302809,3290.6,3289.2,0.30043265]
[1768630673352,1.20436144,3290.5,3289.2,0.30043265]
[1768630673650,1.20436144,3290.4,3289.2,0.30043265]
[1768630673947,1.20436144,3290.3,3289.2,0.30043265]
[1768630674152,0.92724851,3290.2,3289.2,0.30043265]
[1768630674344,1.70302809,3290.6,3289.2,0.30043265]
[1768630674540,1.2043019,3290.5,3289.2,0.30043265]
[1768630674738,1.2043019,3290.4,3289.2,0.30043265]
[1768630674942,1.2043019,3290.3,3289.2,0.30043265]
[1768630675142,0.92719547,3290.2,3289.2,0.30043265]
[1768630675344,1.70302809,3290.6,3289.2,0.30043265]
[1768630675545,1.20427952,3290.5,3289.2,0.30043265]
[1768630675744,1.20427952,3290.4,3289.2,0.30043265]
[1768630675946,1.20427952,3290.3,3289.2,0.30043265]
[1768630676145,0.92717745,3290.2,3289.2,0.30043265]
[1768630676348,1.70302809,3290.6,3289.2,0.30043265]
[1768630676545,1.20417454,3290.5,3289.2,0.30043265]
[1768630676746,1.20417454,3290.4,3289.2,0.30043265]
[1768630676951,1.20417454,3290.3,3289.2,0.30043265]
[1768630677150,0.92709592,3290.2,3289.2,0.30043265]
[1768630677454,1.70302809,3290.6,3289.2,0.30043265]
[1768630677749,1.20416368,3290.5,3289.2,0.30043265]
[1768630677943,1.20416368,3290.4,3289.2,0.30043265]
[1768630678144,1.20416368,3290.3,3289.2,0.30043265]
[1768630678346,0.92708811,3290.2,3289.2,0.30043265]
[1768630678546,1.70302809,3290.6,3289.2,0.30043265]
[1768630678749,1.20415982,3290.5,3289.2,0.30043265]
[1768630678949,1.20415982,3290.4,3289.2,0.30043265]
[1768630679149,1.20415982,3290.3,3289.2,0.30043265]
[1768630679351,0.9270859,3290.2,3288.7,0.34638432]
[1768630679548,0.00302809,3290.6,3288.7,0.34638432]
[1768630679754,1.20413007,3290.5,3288.7,0.34638432]
[1768630679953,1.20413007,3290.4,3288.7,0.34638432]
[1768630680252,1.20413007,3290.3,3288.7,0.34638432]
[1768630680454,0.92706197,3290.2,3288.7,0.34638432]
[1768630680652,0.00302809,3290.6,3288.7,0.34638432]
[1768630680845,1.20411697,3290.5,3288.7,0.34638432]
[1768630681046,1.20411697,3290.4,3288.7,0.34638432]
[1768630681245,1.20411697,3290.3,3288.7,0.34638432]
[1768630681457,0.92705192,3290.2,3289.0,0.9867263]
[1768630681646,0.9867263,3290.3,3289.0,0.9867263]
[1768630681846,0.92703514,3290.2,3289.0,0.9867263]
[1768630682051,0.9867263,3290.3,3289.0,0.9867263]
[1768630682248,0.92703715,3290.2,3289.0,0.9867263]
[1768630682450,0.9867263,3290.3,3289.0,0.9867263]
[1768630682654,0.92703534,3290.2,3289.0,0.9867263]
[1768630682958,0.9867263,3290.3,3289.0,1.33311062]
[1768630683143,0.92703534,3290.2,3289.0,1.33311062]
[1768630683347,0.9867263,3290.3,3289.0,1.33311062]
[1768630683556,0.92703555,3290.2,3289.0,1.33311062]
[1768630683755,0.9867263,3290.3,3289.0,1.33311062]
[1768630683964,0.92703555,3290.2,3289.0,1.33311062]
[1768630684146,0.9867263,3290.3,3289.0,1.33311062]
[1768630684348,0.92703806,3290.2,3289.0,1.33311062]
[1768630684555,0.9867263,3290.3,3289.0,1.33311062]
[1768630684756,0.9270381,3290.2,3289.0,1.33311062]
[1768630684951,0.00302809,3290.6,3289.2,0.9867263]
[1768630685143,0.92709233,3290.5,3289.5,0.34638432]
[1768630685348,0.00302809,3290.6,3289.5,0.34638432]
[1768630685547,0.92702387,3290.5,3289.6,1.33311062]
[1768630685855,0.00302809,3290.6,3289.6,1.33311062]
[1768630686056,0.9270243,3290.5,3289.6,1.33311062]
[1768630686257,0.00302809,3290.6,3289.6,1.33311062]
[1768630686456,0.92677117,3290.5,3289.6,1.33311062]
[1768630686656,0.00302809,3290.6,3289.6,1.33311062]
[1768630686860,0.92677284,3290.5,3289.6,1.33311062]
[1768630687158,0.00302809,3290.6,3289.6,1.33311062]
[1768630687359,0.92662263,3290.5,3289.6,1.33311062]
[1768630687549,0.00302809,3290.6,3289.6,1.33311062]
[1768630687751,0.92662287,3290.5,3289.6,1.33311062]
[1768630688059,0.00302809,3290.6,3289.6,1.33311062]
[1768630688360,0.92650075,3290.5,3289.6,1.33311062]
[1768630688559,0.00302809,3290.6,3289.6,1.33311062]
[1768630688859,0.92650075,3290.5,3289.6,1.33311062]
[1768630689062,0.00302809,3290.6,3289.6,1.33311062]
[1768630703070,0.00302809,3290.6,3289.7,0.37109102]
[1768630704871,0.00302809,3290.6,3289.8,1.35781732]
[1768630710069,0.00302809,3290.6,3289.9,0.37109102]
[1768630717484,0.00302809,3290.6,3290.0,1.3862871]
[1768630723496,0.00302809,3290.6,3290.0,0.3995608]
[1768630750115,0.15198,3291.4,3290.0,0.3995608]
[1768630750310,1.20850929,3291.3,3290.0,0.3995608]
[1768630750613,1.20850929,3291.2,3290.0,0.3995608]
[1768630750809,1.20850929,3291.1,3290.0,0.3995608]
[1768630751009,1.20850929,3291.0,3290.0,0.3995608]
[1768630751310,1.20850929,3290.9,3290.0,0.3995608]
[1768630751510,0.93144221,3290.8,3290.0,0.3995608]
[1768630751808,0.93144221,3290.7,3290.0,0.3995608]
[1768630752013,0.00361398,3291.1,3290.0,0.3995608]
[1768630752214,1.2084917,3291.0,3290.0,0.3995608]
[1768630752413,1.2084917,3290.9,3290.0,0.3995608]
[1768630752710,0.93142884,3290.8,3290.0,0.3995608]
[1768630752909,0.93142884,3290.7,3290.0,0.3995608]
[1768630753117,0.00361398,3291.1,3290.0,0.3995608]
[1768630753416,1.20849062,3291.0,3290.0,0.3995608]
[1768630753610,1.20849062,3290.9,3290.0,0.3995608]
[1768630753812,0.93142808,3290.8,3290.0,0.3995608]
[1768630754010,0.93142808,3290.7,3290.0,0.3995608]
[1768630754311,0.00361398,3291.1,3290.0,0.3995608]
[1768630754508,1.20849815,3291.0,3290.0,0.3995608]
[1768630754705,1.20849815,3290.9,3290.0,0.3995608]
[1768630754910,0.93143343,3290.8,3290.0,0.3995608]
[1768630755208,0.93143343,3290.7,3290.0,0.3995608]
[1768630755409,0.00361398,3291.1,3290.0,0.3995608]
[1768630755614,1.2084917,3291.0,3290.0,0.3995608]
[1768630755815,1.2084917,3290.9,3290.0,0.3995608]
[1768630756011,0.93142928,3290.8,3290.0,0.3995608]
[1768630756212,0.93142928,3290.7,3290.0,0.3995608]
[1768630756520,0.00361398,3291.1,3290.0,0.3995608]
[1768630756719,0.93142324,3291.0,3290.0,0.3995608]
[1768630757016,1.20848418,3290.9,3290.0,0.3995608]
[1768630757218,0.93142324,3290.8,3290.0,0.3995608]
[1768630757412,0.93142324,3290.7,3290.0,0.3995608]
[1768630757619,0.00361398,3291.1,3290.0,0.3995608]
[1768630757912,1.20900567,3291.0,3290.0,0.3995608]
[1768630758112,1.20900567,3290.9,3290.0,0.3995608]
[1768630758313,0.9319452,3290.8,3290.0,0.3995608]
[1768630758618,0.9319452,3290.7,3290.0,0.3995608]
[1768630758818,0.00361398,3291.1,3290.0,0.3995608]
[1768630759018,1.20900572,3291.0,3290.0,0.3995608]
[1768630759320,1.20900572,3290.9,3290.0,0.3995608]
[1768630759523,0.93194529,3290.8,3290.0,0.3995608]
[1768630759818,0.93194529,3290.7,3290.0,0.3995608]
[1768630760017,0.00361398,3291.1,3290.0,0.3995608]
[1768630760219,1.20902069,3291.0,3290.0,0.3995608]
[1768630760413,1.20902069,3290.9,3290.0,0.3995608]
[1768630760607,0.93195686,3290.8,3290.0,0.3995608]
[1768630760809,0.93195686,3290.7,3290.0,0.3995608]
[1768630761105,0.00361398,3291.1,3290.0,0.3995608]
[1768630761311,1.2090094,3291.0,3290.0,0.3995608]
[1768630761510,1.2090094,3290.9,3290.0,0.3995608]
[1768630761706,0.93194841,3290.8,3290.0,0.3995608]
[1768630761910,0.93194841,3290.7,3290.0,0.3995608]
[1768630762112,0.00361398,3291.1,3290.0,0.3995608]
[1768630762311,1.20902555,3291.0,3290.0,0.3995608]
[1768630762508,1.20902555,3290.9,3290.0,0.3995608]
[1768630762715,0.93196091,3290.8,3290.0,0.3995608]
[1768630762918,0.93196091,3290.7,3290.0,0.3995608]
[1768630763120,0.00361398,3291.1,3290.0,0.3995608]
[1768630763320,1.20902901,3291.0,3290.0,0.3995608]
[1768630763616,1.20902901,3290.9,3290.0,0.3995608]
[1768630763817,0.93196372,3290.8,3290.0,0.3995608]
[1768630764017,0.00361398,3291.1,3290.0,0.3995608]
[1768630764018,0.93196372,3290.7,3290.0,0.3995608]
[1768630764219,0.00361398,3291.1,3290.0,0.3995608]
[1768630764417,1.20902468,3291.0,3290.0,0.3995608]
[1768630764716,1.20902468,3290.9,3290.0,0.3995608]
[1768630764916,0.93196053,3290.8,3290.0,0.3995608]
[1768630765113,0.93196053,3290.7,3290.0,0.3995608]
[1768630765416,0.00361398,3291.1,3290.0,0.3995608]
[1768630765616,1.2090297,3291.0,3290.0,0.3995608]
[1768630765816,1.2090297,3290.9,3290.0,0.3995608]
[1768630766116,0.93196389,3290.8,3290.0,0.3995608]
[1768630766313,0.93196389,3290.7,3290.0,0.3995608]
[1768630766517,0.00361398,3291.1,3290.0,0.3995608]
[1768630766714,1.2090347,3291.0,3290.0,0.3995608]
[1768630766927,1.2090347,3290.9,3290.0,0.3995608]
[1768630767124,0.9319678,3290.8,3290.0,0.3995608]
[1768630767318,0.9319678,3290.7,3290.0,0.3995608]
[1768630767518,0.00361398,3291.1,3290.0,0.3995608]
[1768630767718,1.20904055,3291.0,3290.0,0.3995608]
[1768630768019,1.20904055,3290.9,3290.0,0.3995608]
[1768630768218,0.93197236,3290.8,3290.0,0.3995608]
[1768630768421,0.93197236,3290.7,3290.0,0.3995608]
[1768630768621,0.00361398,3291.1,3290.0,0.3995608]
[1768630768823,1.20905053,3291.0,3290.0,0.3995608]
[1768630769022,1.20905053,3290.9,3290.0,0.3995608]
[1768630769225,0.9319795,3290.8,3290.0,0.3995608]
[1768630769527,0.9319795,3290.7,3290.0,0.3995608]
[1768630769731,0.00361398,3291.1,3290.0,0.3995608]
[1768630769932,1.20906456,3291.0,3290.0,0.3995608]
[1768630770117,1.20906456,3290.9,3290.0,0.3995608]
[1768630770414,0.93199035,3290.8,3290.0,0.3995608]
[1768630770616,0.93199035,3290.7,3290.0,0.3995608]
[1768630770821,0.00361398,3291.1,3290.0,0.3995608]
[1768630771023,1.20906555,3291.0,3290.0,0.3995608]
[1768630771221,1.20906555,3290.9,3290.0,0.3995608]
[1768630771428,0.93199111,3290.8,3290.0,0.3995608]
[1768630771629,0.93199111,3290.7,3290.0,0.3995608]
[1768630771825,0.00361398,3291.1,3290.0,0.3995608]
[1768630772024,1.20910881,3291.0,3290.0,0.3995608]
[1768630772232,1.20910881,3290.9,3290.0,0.3995608]
[1768630772439,0.93202484,3290.8,3290.0,0.3995608]
[1768630772637,0.93202484,3290.7,3290.0,0.3995608]
[1768630772934,0.00361398,3291.1,3290.0,0.3995608]
[1768630773126,1.20910867,3291.0,3290.0,0.3995608]
[1768630773325,1.20910867,3290.9,3290.0,0.3995608]
[1768630773625,0.93202473,3290.8,3290.0,0.3995608]
[1768630773825,0.93202473,3290.7,3290.0,0.3995608]
[1768630774026,0.00361398,3291.1,3290.0,0.3995608]
[1768630774227,1.20910876,3291.0,3290.0,0.3995608]
[1768630774430,1.20910876,3290.9,3290.0,0.3995608]
[1768630774627,0.93202482,3290.8,3290.0,0.3995608]
[1768630774827,0.93202482,3290.7,3290.0,0.3995608]
[1768630775031,0.00361398,3291.1,3290.0,0.3995608]
[1768630775231,1.20910882,3291.0,3290.0,0.3995608]
[1768630775430,0.00361398,3291.1,3290.0,0.3995608]
[1768630775431,1.20910882,3290.9,3290.0,0.3995608]
[1768630775630,0.93202485,3290.8,3290.0,0.3995608]
[1768630775834,0.93202485,3290.7,3290.0,0.3995608]
[1768630776034,0.00361398,3291.1,3290.0,0.3995608]
[1768630776235,1.20910886,3291.0,3290.0,0.3995608]
[1768630776437,1.20910886,3290.9,3290.0,0.3995608]
[1768630776730,0.93202489,3290.8,3290.0,0.3995608]
[1768630776934,0.93202489,3290.7,3290.0,0.3995608]
[1768630777134,0.00361398,3291.1,3290.0,0.3995608]
[1768630777336,1.2091088,3291.0,3290.0,0.3995608]
[1768630777535,1.2091088,3290.9,3290.0,0.3995608]
[1768630777734,0.93202484,3290.8,3290.0,0.3995608]
[1768630777934,0.93202484,3290.7,3290.0,0.3995608]
[1768630778233,0.00361398,3291.1,3290.0,0.3995608]
[1768630778433,1.20911353,3291.0,3290.0,0.3995608]
[1768630778637,1.20911353,3290.9,3290.0,0.3995608]
[1768630778834,0.93202862,3290.8,3290.0,0.3995608]
[1768630779037,0.93202862,3290.7,3290.0,0.3995608]
[1768630779235,0.00361398,3291.1,3290.0,0.3995608]
[1768630779433,1.20911433,3291.0,3290.0,0.3995608]
[1768630779727,1.20911433,3290.9,3290.0,0.3995608]
[1768630779932,0.93202925,3290.8,3290.0,0.3995608]
[1768630780133,0.93202925,3290.7,3290.0,0.3995608]
[1768630780435,0.00361398,3291.1,3290.0,0.3995608]
[1768630780633,1.20911562,3291.0,3290.0,0.3995608]
[1768630780836,1.2091263,3290.9,3290.0,0.3995608]
[1768630781040,0.93202968,3290.8,3290.0,0.3995608]
[1768630781237,0.93202968,3290.7,3290.0,0.3995608]
[1768630781436,0.00361398,3291.1,3290.0,0.3995608]
[1768630781636,1.20916344,3291.0,3290.0,0.3995608]
[1768630781836,1.20916344,3290.9,3290.0,0.3995608]
[1768630782037,0.93206674,3290.8,3290.0,0.3995608]
[1768630782333,0.93206674,3290.7,3290.0,0.3995608]
[1768630782638,0.00361398,3291.1,3290.0,0.3995608]
[1768630782838,1.20916436,3291.0,3290.0,0.3995608]
[1768630783042,1.20916436,3290.9,3290.0,0.3995608]
[1768630783240,0.93206754,3290.8,3290.0,0.3995608]
[1768630783441,0.93206754,3290.7,3290.0,0.3995608]
[1768630783638,0.00361398,3291.1,3290.0,0.3995608]
[1768630783842,1.20916687,3291.0,3290.0,0.3995608]
[1768630784140,1.20916687,3290.9,3290.0,0.3995608]
[1768630784344,0.93206982,3290.8,3290.0,0.3995608]
[1768630784531,0.93206982,3290.7,3290.0,0.3995608]
[1768630784728,0.00361398,3291.1,3290.0,0.3995608]
[1768630784942,1.20916644,3291.0,3290.0,0.3995608]
[1768630785239,1.20916644,3290.9,3290.0,0.3995608]
[1768630785535,0.9320694,3290.8,3290.0,0.3995608]
[1768630785842,0.9320694,3290.7,3290.0,0.3995608]
[1768630786043,0.00361398,3291.1,3290.0,0.3995608]
[1768630786230,1.20914684,3291.0,3290.0,0.3995608]
[1768630786436,1.20914684,3290.9,3290.0,0.3995608]
[1768630786735,0.93205372,3290.8,3290.0,0.3995608]
[1768630786935,0.93205372,3290.7,3290.0,0.3995608]
[1768630787134,0.00361398,3291.1,3290.0,0.3995608]
[1768630787340,1.20914751,3291.0,3290.0,0.3995608]
[1768630787636,1.20914751,3290.9,3290.0,0.3995608]
[1768630787837,0.93205429,3290.8,3290.0,0.3995608]
[1768630788140,0.93205429,3290.7,3290.0,0.3995608]
[1768630788352,0.00361398,3291.1,3290.0,0.3995608]
[1768630788539,1.20827052,3291.0,3290.0,0.3995608]
[1768630788835,1.20827052,3290.9,3290.0,0.3995608]
[1768630789036,0.93117967,3290.8,3290.0,0.3995608]
[1768630789242,0.93117967,3290.7,3290.0,0.3995608]
[1768630789443,0.00361398,3291.1,3290.0,0.3995608]
[1768630789632,1.20826747,3291.0,3290.0,0.3995608]
[1768630789833,1.20826747,3290.9,3290.0,0.3995608]
[1768630790044,0.93117732,3290.8,3290.0,0.3995608]
[1768630790239,0.93117732,3290.7,3290.0,0.3995608]
[1768630790440,0.00361398,3291.1,3290.0,0.3995608]
[1768630790640,1.20826538,3291.0,3290.0,0.3995608]
[1768630790840,1.20826538,3290.9,3290.0,0.3995608]
[1768630791042,0.93117573,3290.8,3290.0,0.3995608]
[1768630791244,0.00361398,3291.1,3290.0,0.3995608]
[1768630791245,0.93117573,3290.7,3290.0,0.3995608]
[1768630791439,0.00361398,3291.1,3290.0,0.3995608]
[1768630791639,1.20826423,3291.0,3290.0,0.3995608]
[1768630791835,1.20826423,3290.9,3290.0,0.3995608]
[1768630792034,0.93117446,3290.8,3290.0,0.3995608]
[1768630792243,0.93117446,3290.7,3290.0,0.3995608]
[1768630792444,0.00361398,3291.1,3290.0,0.3995608]
[1768630792746,1.20826297,3291.0,3290.0,0.3995608]
[1768630792939,1.20826297,3290.9,3290.0,0.3995608]
[1768630793139,0.9311735,3290.8,3290.0,0.3995608]
[1768630793438,0.9311735,3290.7,3290.0,0.3995608]
[1768630793640,0.00361398,3291.1,3290.0,0.3995608]
[1768630793846,1.20826184,3291.0,3290.0,0.3995608]
[1768630794143,1.20826184,3290.9,3290.0,0.3995608]
[1768630794444,0.93117264,3290.8,3290.0,0.3995608]
[1768630794643,0.93117264,3290.7,3290.0,0.3995608]
[1768630794844,0.00361398,3291.1,3290.0,0.3995608]
[1768630795144,1.20824505,3291.0,3290.0,0.3995608]
[1768630795343,1.20824505,3290.9,3290.0,0.3995608]
[1768630795540,0.93115997,3290.8,3290.0,0.3995608]
[1768630795740,0.93115997,3290.7,3290.0,0.3995608]
[1768630795947,0.00361398,3291.1,3290.0,0.3995608]
[1768630796148,1.20824301,3291.0,3290.0,0.3995608]
[1768630796345,1.20824301,3290.9,3290.0,0.3995608]
[1768630796648,0.93115816,3290.8,3290.0,0.3995608]
[1768630796851,0.93115816,3290.7,3290.0,0.3995608]
[1768630797039,0.00361398,3291.1,3290.0,0.3995608]
[1768630797239,1.20824202,3291.0,3290.0,0.3995608]
[1768630797440,1.20824202,3290.9,3290.0,0.3995608]
[1768630797650,0.93115732,3290.8,3290.0,0.3995608]
[1768630797950,0.93115732,3290.7,3290.0,0.3995608]
[1768630798136,0.00361398,3291.1,3290.0,0.3995608]
[1768630798340,1.20824166,3291.0,3290.0,0.3995608]
[1768630798635,1.20824166,3290.9,3290.0,0.3995608]
[1768630798835,0.93115707,3290.8,3290.0,0.3995608]
[1768630799039,0.93115707,3290.7,3290.0,0.3995608]
[1768630799338,0.00361398,3291.1,3290.0,0.3995608]
[1768630799540,1.20824292,3291.0,3290.0,0.3995608]
[1768630799736,1.20824292,3290.9,3290.0,0.3995608]
[1768630799937,0.93115812,3290.8,3290.0,0.3995608]
[1768630800149,0.93115812,3290.7,3290.0,0.3995608]
[1768630800347,0.00361398,3291.1,3290.0,0.3995608]
[1768630800652,1.20824174,3291.0,3289.5,0.4059876]
[1768630800848,1.20824174,3290.9,3289.5,0.4059876]
[1768630801050,0.9311572,3290.8,3289.5,0.4059876]
[1768630801244,0.9311572,3290.7,3289.5,0.4059876]
[1768630801446,0.00361398,3291.1,3289.5,0.4059876]
[1768630801747,1.20824048,3291.0,3289.5,0.4059876]
[1768630801945,1.20824048,3290.9,3289.5,0.4059876]
[1768630802149,0.98626623,3290.6,3289.1,0.76615856]
[1768630802348,1.2081891,3290.5,3289.1,0.76615856]
[1768630802550,1.20796902,3290.4,3289.1,0.76615856]
[1768630802755,1.20796902,3290.3,3289.1,0.76615856]
[1768630802941,0.93115622,3290.2,3289.1,0.76615856]
[1768630803150,0.93115622,3290.1,3289.1,0.76615856]
[1768630803348,0.98678344,3290.3,3289.1,0.76615856]
[1768630803549,0.92967186,3290.2,3289.1,0.76615856]
[1768630803851,0.98678344,3290.3,3289.1,0.76615856]
[1768630804050,0.92967182,3290.2,3289.1,0.76615856]
[1768630804252,0.98678344,3290.3,3289.1,0.76615856]
[1768630804449,0.92933536,3290.2,3289.1,0.76615856]
[1768630804653,0.98678344,3290.3,3289.1,0.76615856]
[1768630804854,0.98678344,3290.1,3289.1,0.76615856]
[1768630815767,0.98678344,3290.3,3289.1,0.76615856]
[1768630817767,0.98678344,3289.4,3288.6,0.00236456]
[1768630817970,0.15204,3290.0,3288.8,0.98678344]
[1768630818171,0.15204,3290.0,3288.9,0.4059876]
[1768630818172,1.13882344,3290.0,3288.9,0.4059876]
[1768630822588,0.15204,3290.0,3288.9,0.4059876]
[1768630825883,1.7,3290.7,3289.1,0.39585513]
[1768630826184,0.98678344,3290.4,3289.1,0.39585513]
[1768630826384,1.20363876,3290.3,3289.1,0.39585513]
[1768630826684,0.92752005,3290.2,3289.1,0.39585513]
[1768630826884,0.92752005,3290.1,3289.1,0.39585513]
[1768630827084,0.98678344,3290.4,3289.1,0.39585513]
[1768630827284,1.20409626,3290.3,3289.1,0.39585513]
[1768630827485,0.92792835,3290.2,3289.1,0.39585513]
[1768630827685,0.92792835,3290.1,3289.1,0.39585513]
[1768630827886,0.98678344,3290.4,3289.1,0.39585513]
[1768630828074,1.20418056,3290.3,3289.1,0.39585513]
[1768630828276,1.20418056,3290.2,3289.1,1.38263857]
[1768630828485,0.92795023,3290.1,3289.1,1.38263857]
[1768630828687,0.92795023,3290.0,3289.1,1.38263857]
[1768630828886,0.98678344,3290.4,3289.1,1.38263857]
[1768630829186,1.20451351,3290.3,3289.1,1.38263857]
[1768630829388,1.20451351,3290.2,3289.1,1.38263857]
[1768630829588,0.92820678,3290.1,3289.1,1.38263857]
[1768630829889,0.92820678,3290.0,3289.1,1.38263857]
[1768630830188,0.98678344,3290.4,3289.1,1.38263857]
[1768630830390,1.2049722,3290.3,3289.1,1.38263857]
[1768630830581,1.2049722,3290.2,3289.1,1.38263857]
[1768630830883,0.92856023,3290.1,3289.1,1.38263857]
[1768630831187,0.92856023,3290.0,3289.1,1.38263857]
[1768630831387,0.98678344,3290.4,3289.1,1.38263857]
[1768630831688,1.20555626,3290.3,3289.1,1.38263857]
[1768630831986,1.20555626,3290.2,3289.1,1.38263857]
[1768630832183,1.20555626,3290.1,3289.1,0.39585513]
[1768630832384,0.92901025,3290.0,3289.1,0.39585513]
[1768630832588,0.98678344,3290.4,3289.1,0.39585513]
[1768630832792,1.2056847,3290.3,3289.1,0.39585513]
[1768630833086,1.2056847,3290.2,3289.1,0.39585513]
[1768630833388,1.2056847,3290.1,3289.1,0.39585513]
[1768630833589,0.92910921,3290.0,3289.1,0.39585513]
[1768630833777,0.98678344,3290.4,3289.1,0.39585513]
[1768630833979,1.20570172,3290.3,3289.1,0.39585513]
[1768630834178,1.20570172,3290.2,3289.1,0.39585513]
[1768630834378,0.98678344,3290.4,3289.1,0.39585513]
[1768630834379,1.20570172,3290.1,3289.1,0.39585513]